Workbook

Sheet Лист1
A1: Школа | G1: Утвердил: | H1: должность
A2: Форма ежедневного меню приготавливаемых блюд | H2: фамилия
A3: Возрастная категория | F3: 7-11 лет | H3: дата | J3: Апрель | K3: 2025
I4: день | J4: месяц | K4: год
A5: Неделя | B5: День недели | C5: Прием пищи | D5: Раздел меню | E5: № рецептуры | F5: Блюда | G5: Вес блюда, г | H5: Цена | I5: Калорийность | J5: Белки | K5: Жиры | L5: Углеводы
A6: 1 | B6: 1 | C6: Завтрак | D6: гор.блюдо | E6: ТТК от 01.11.2022 | F6: Котлеты "Аппетитные" мясо-куриные | G6: 90 | I6: 203 | J6: 13.095 | K6: 12.249 | L6: 9.996
D7: гор.блюдо | E7: № 304/2015г Дели | F7: Каша гречневая вязкая | G7: 150 | I7: 143 | J7: 3.462 | K7: 4.634 | L7: 21.786
D8: гор.напиток | E8: ТТК от 2021г | F8: Чай с сахаром | G8: 208 | I8: 32 | J8: 0.021 | K8: 0.005 | L8: 7.989
D9: хлеб | F9: Хлеб ржано-пшеничный/ Хлеб пшеничный | G9: 40 | I9: 91 | J9: 2.520 | K9: 0.360 | L9: 18.840
E11: №45/2015 Дели | F11: Салат из белокачанной капусты | G11: 60 | I11: 54 | J11: 0.961 | K11: 3.051 | L11: 5.513
D13: итого | G13: =SUM(G6:G12) -> 548 | H13: 69.43 | I13: =SUM(I6:I12) -> 523 | J13: =SUM(J6:J12) -> 20.059 | K13: 20.299 | L13: 64.124
A14: =A6 -> 1 | B14: =B6 -> 1 | C14: Обед | D14: закуска
D15: 1 блюдо
D16: 2 блюдо
D17: гарнир
D18: напиток
D19: хлеб бел.
D20: хлеб черн.
D23: итого | G23: =SUM(G14:G22) -> 0 | H23: =SUM(H14:H22) -> 0 | I23: 0 | J23: 0 | K23: 0 | L23: 0
A24: =A6 -> 1 | B24: =B6 -> 1 | C24: Итого за день: | G24: =G13+G23 -> 548 | H24: =H13+H23 -> 69.43 | I24: 523 | J24: 20.059 | K24: 20.299 | L24: 64.124
A25: 1 | B25: 2 | C25: Завтрак | D25: гор.блюдо | E25: ТТК №2738 от 7.12.2023 | F25: Жаркое из птицы (грудки куриные) | G25: 190 | I25: 388 | J25: 17.000 | K25: 17.790 | L25: 39.880
D26: гор.блюдо
D27: гор.напиток | E27: ТТК от 2021г | F27: Чай с сахаром | G27: 208 | I27: 32 | J27: 0.021 | K27: 0.005 | L27: 7.989
D28: хлеб | F28: Хлеб ржано-пшеничный/ Хлеб пшеничный | G28: 40 | I28: 91 | J28: 2.52 | K28: 0.36 | L28: 18.84
D30: фрукты | E30: № 338 | F30: Плоды и ягоды свежие (яблоки) | G30: 100 | I30: 47 | J30: 0.400 | K30: 0.400 | L30: 9.800
D33: итого | G33: =SUM(G25:G32) -> 538 | H33: 69.43 | I33: =SUM(I25:I31) -> 558 | J33: =SUM(J25:J32) -> 19.941 | K33: =SUM(K25:K32) -> 18.555 | L33: =SUM(L25:L32) -> 76.509
A34: =A25 -> 1 | B34: =B25 -> 2 | C34: Обед | D34: закуска
D35: 1 блюдо
D36: 2 блюдо
D37: гарнир
D38: напиток
D39: хлеб бел.
D40: хлеб черн.
D43: итого | G43: =SUM(G34:G42) -> 0 | H43: =SUM(H34:H42) -> 0 | I43: 0 | J43: 0 | K43: 0 | L43: 0
A44: =A25 -> 1 | B44: =B25 -> 2 | C44: Итого за день: | G44: =G33+G43 -> 538 | H44: =H33+H43 -> 69.43 | I44: 558 | J44: 19.941 | K44: 18.555 | L44: 76.509
A45: 1 | B45: 3 | C45: Завтрак | D45: гор.блюдо | E45: №243/2015 Дели | F45: Сосиски отварные | G45: 100 | I45: 199 | J45: 10.700 | K45: 14.500 | L45: 6.400
D46: гор.блюдо | E46: №309/2015г Дели | F46: Макаронные изделия отварные | G46: 150 | I46: 212 | J46: 5.602 | K46: 5.068 | L46: 35.906
D47: гор.напиток | E47: ТТК 2021г | F47: Напиток из урюка | G47: 200 | I47: 79 | J47: 0.800 | K47: 0.064 | L47: 18.460
D48: хлеб | F48: Хлеб ржано-пшеничный/ Хлеб пшеничный | G48: 40 | I48: 91 | J48: 2.520 | K48: 0.360 | L48: 18.840
D49: фрукты
E50: №71/2015 г Дели | F50: Овощи натуральные свежие (огурцы) | G50: 30 | I50: 3 | J50: 0.210 | K50: 0.030 | L50: 0.570
D52: итого | G52: =SUM(G45:G51) -> 520 | H52: 69.43 | I52: =SUM(I45:I51) -> 584 | J52: =SUM(J45:J51) -> 19.832 | K52: 20.022 | L52: 80.176
A53: =A45 -> 1 | B53: =B45 -> 3 | C53: Обед | D53: закуска
D54: 1 блюдо
D55: 2 блюдо
D56: гарнир
D57: напиток
D58: хлеб бел.
D59: хлеб черн.
D62: итого | G62: =SUM(G53:G61) -> 0 | H62: =SUM(H53:H61) -> 0 | I62: 0 | J62: 0 | K62: 0 | L62: 0
A63: =A45 -> 1 | B63: =B45 -> 3 | C63: Итого за день: | G63: =G52+G62 -> 520 | H63: =H52+H62 -> 69.43 | I63: 584 | J63: 19.832 | K63: =K52+K62 -> 20.022 | L63: =L52+L62 -> 80.176
A64: 1 | B64: 4 | C64: Завтрак | D64: гор.блюдо | E64: ТТК № 2737 от 07.12.2023 | F64: Плов с говядиной | G64: 190 | I64: 393 | J64: 15.440 | K64: 14.090 | L64: 51.200
D65: гор.блюдо
D66: гор.напиток | E66: ТТК от 2021г | F66: Чай с сахаром | G66: 208 | I66: 32 | J66: 0.021 | K66: 0.005 | L66: 7.989
D67: хлеб | F67: Хлеб ржано-пшеничный/ Хлеб пшеничный | G67: 42 | I67: 95 | J67: 2.620 | K67: 0.380 | L67: 19.740
D68: фрукты
E69: ТТК 2013г | F69: Салат из белокочанной капусты со свежими огурцами | G69: 60 | I69: 66 | J69: 0.752 | K69: 6.049 | L69: 1.978
D71: итого | G71: =SUM(G64:G70) -> 500 | H71: 69.43 | I71: =SUM(I64:I70) -> 586 | J71: =SUM(J64:J70) -> 18.833 | K71: =SUM(K64:K70) -> 20.524 | L71: =SUM(L64:L70) -> 80.907
A72: =A64 -> 1 | B72: =B64 -> 4 | C72: Обед | D72: закуска
D73: 1 блюдо
D74: 2 блюдо
D75: гарнир
D76: напиток
D77: хлеб бел.
D78: хлеб черн.
D81: итого | G81: =SUM(G72:G80) -> 0 | H81: =SUM(H72:H80) -> 0 | I81: 0 | J81: 0 | K81: 0 | L81: 0
A82: =A64 -> 1 | B82: =B64 -> 4 | C82: Итого за день: | G82: =G71+G81 -> 500 | H82: =H71+H81 -> 69.43 | I82: 586 | J82: 18.833 | K82: 20.524 | L82: 80.907
A83: 1 | B83: 5 | C83: Завтрак | D83: гор.блюдо | E83: ТТК 2020 г | F83: Тефтели куриные "Лакомка" в соусе для запекания | G83: 90 | I83: 233 | J83: 10.768 | K83: 14.409 | L83: 15.117
D84: гор.блюдо | E84: №312/2015 Дели | F84: Спагетти отварные | G84: 150 | I84: 212 | J84: 5.601 | K84: 5.068 | L84: 35.899
D85: гор.напиток | E85: ТТК № 2694 от 14.09.2023 г | F85: Напиток из вишни | G85: 200 | I85: 48 | J85: 0.12 | K85: 0.03 | L85: 11.570
D86: хлеб | F86: Хлеб ржано-пшеничный/ Хлеб пшеничный | G86: 40 | I86: 91 | J86: 2.520 | K86: 0.360 | L86: 18.840
D87: фрукты
E88: №71/2015 г Дели | F88: Овощи натуральные свежие (огурцы) | G88: 30 | I88: 3 | J88: 0.210 | K88: 0.030 | L88: 0.570
D90: итого | G90: =SUM(G83:G89) -> 510 | H90: 69.43 | I90: =SUM(I83:I89) -> 587 | J90: 19.219 | K90: 19.897 | L90: 81.996
A91: =A83 -> 1 | B91: =B83 -> 5 | C91: Обед | D91: закуска
D92: 1 блюдо
D93: 2 блюдо
D94: гарнир
D95: напиток
D96: хлеб бел.
D97: хлеб черн.
D100: итого | G100: =SUM(G91:G99) -> 0 | H100: =SUM(H91:H99) -> 0 | I100: 0 | J100: 0 | K100: 0 | L100: 0
A101: =A83 -> 1 | B101: =B83 -> 5 | C101: Итого за день: | G101: =G90+G100 -> 510 | H101: 69.43 | I101: 587 | J101: 19.219 | K101: 19.897 | L101: 81.996
A102: 1 | B102: 6 | C102: Завтрак | D102: гор.блюдо | E102: ТТК 2015г | F102: Пельмени "Для умников и умниц" отварные с маслом | G102: 160 | I102: 359 | J102: 16.156 | K102: 15.790 | L102: 38.063
D104: гор.напиток | E104: ТТК от 2021г | F104: Чай с сахаром | G104: 208 | I104: 32 | J104: 0.021 | K104: 0.005 | L104: 7.989
D105: хлеб | F105: Хлеб ржано-пшеничный/ Хлеб пшеничный | G105: 40 | I105: 91 | J105: 2.520 | K105: 0.360 | L105: 18.840
D106: фрукты | E106: №338 | F106: Плоды и ягоды свежие (яблоки) | G106: 100 | I106: 47 | J106: 0.400 | K106: 0.400 | L106: 9.800
D109: итого | G109: =SUM(G102:G108) -> 508 | H109: 69.43 | I109: =SUM(I102:I108) -> 529 | J109: =SUM(J102:J108) -> 19.097 | K109: =SUM(K102:K108) -> 16.555 | L109: =SUM(L102:L108) -> 74.692
A110: =A102 -> 1 | B110: 6 | C110: Обед | D110: закуска
D111: 1 блюдо
D112: 2 блюдо
D113: гарнир
D114: напиток
D115: хлеб бел.
D116: хлеб черн.
D119: итого | G119: =SUM(G110:G118) -> 0 | H119: =SUM(H110:H118) -> 0 | I119: 0 | J119: 0 | K119: 0 | L119: 0
A120: =A102 -> 1 | B120: =B102 -> 6 | C120: Итого за день: | G120: =G109+G119 -> 508 | H120: 69.43 | I120: 529 | J120: 19.097 | K120: 16.555 | L120: 74.692
A121: 2 | B121: 1 | C121: Завтрак | D121: гор.блюдо | E121: ТТК от 09.07.2023 | F121: Ёжики мясные с рисом в соусе для запекания | G121: 90 | I121: 195 | J121: 10.683 | K121: 12.909 | L121: 9.085
D122: гор.блюдо | E122: №309/2015г Дели | F122: Макаронные изделия отварные | G122: 150 | I122: 212 | J122: 5.602 | K122: 5.068 | L122: 35.906
D123: гор.напиток | E123: ТТК от 2021г | F123: Чай с сахаром | G123: 208 | I123: 32 | J123: 0.021 | K123: 0.005 | L123: 7.989
D124: хлеб | F124: Хлеб ржано-пшеничный/ Хлеб пшеничный | G124: 40 | I124: 91 | J124: 2.520 | K124: 0.360 | L124: 18.840
D125: фрукты
E126: №71/2015 г Дели | F126: Овощи натуральные свежие (огурцы) | G126: 30 | I126: 3 | J126: 0.210 | K126: 0.030 | L126: 0.570
D128: итого | G128: =SUM(G121:G127) -> 518 | H128: 69.43 | I128: =SUM(I121:I127) -> 533 | J128: =SUM(J121:J127) -> 19.036 | K128: =SUM(K121:K127) -> 18.372 | L128: =SUM(L121:L127) -> 72.390
A129: =A121 -> 2 | B129: =B121 -> 1 | C129: Обед | D129: закуска
D130: 1 блюдо
D131: 2 блюдо
D132: гарнир
D133: напиток
D134: хлеб бел.
D135: хлеб черн.
D138: итого | G138: =SUM(G129:G137) -> 0 | H138: =SUM(H129:H137) -> 0 | I138: 0 | J138: 0 | K138: 0 | L138: 0
A139: =A121 -> 2 | B139: =B121 -> 1 | C139: Итого за день: | G139: =G128+G138 -> 518 | H139: =H128+H138 -> 69.43 | I139: 533 | J139: 19.036 | K139: 18.372 | L139: 72.39
A140: 2 | B140: 2 | C140: Завтрак | D140: гор.блюдо | E140: ТТК 2021г Июль | F140: Плов с куриными грудками | G140: 190 | I140: 407 | J140: 15.440 | K140: 15.583 | L140: 51.200
D142: гор.напиток | E142: ТТК от 2021г Дели | F142: Чай с сахаром | G142: 208 | I142: 32 | J142: 0.021 | K142: 0.005 | L142: 7.989
D143: хлеб | F143: Хлеб ржано-пшеничный/ Хлеб пшеничный | G143: 42 | I143: 95 | J143: 2.62 | K143: 0.38 | L143: 19.74
D144: фрукты
E145: №45/2015г Дели | F145: Салат из белокачанной капусты | G145: 60 | I145: 54 | J145: 0.961 | K145: 3.051 | L145: 5.513
D147: итого | G147: =SUM(G140:G146) -> 500 | H147: 69.43 | I147: =SUM(I140:I146) -> 588 | J147: 19.042 | K147: 19.019 | L147: 84.442
A148: =A140 -> 2 | B148: =B140 -> 2 | C148: Обед | D148: закуска
D149: 1 блюдо
D150: 2 блюдо
D151: гарнир
D152: напиток
D153: хлеб бел.
D154: хлеб черн.
D157: итого | G157: =SUM(G148:G156) -> 0 | H157: =SUM(H148:H156) -> 0 | I157: 0 | J157: 0 | K157: 0 | L157: 0
A158: =A140 -> 2 | B158: =B140 -> 2 | C158: Итого за день: | G158: =G147+G157 -> 500 | H158: =H147+H157 -> 69.43 | I158: 588 | J158: 19.042 | K158: 19.019 | L158: 84.442
A159: 2 | B159: 3 | C159: Завтрак | D159: гор.блюдо | E159: ТТК от 01.11.2022 | F159: Бифштекс рубленый по-домашнему | G159: 90 | I159: 223 | J159: 13.690 | K159: 12.037 | L159: 14.997
D160: гор.блюдо | E160: № 304/2015г Дели | F160: Каша гречневая вязкая | G160: 150 | I160: 143 | J160: 3.462 | K160: 4.634 | L160: 21.786
D161: гор.напиток | E161: ТТК от 2021г | F161: Чай с сахаром | G161: 208 | I161: 32 | J161: 0.021 | K161: 0.005 | L161: 7.989
D162: хлеб | F162: Хлеб ржано-пшеничный/ Хлеб пшеничный | G162: 40 | I162: 91 | J162: 2.520 | K162: 0.360 | L162: 18.840
D163: фрукты
E164: №71/2015 г Дели | F164: Овощи натуральные свежие (огурцы) | G164: 30 | I164: 3 | J164: 0.210 | K164: 0.030 | L164: 0.570
D166: итого | G166: =SUM(G159:G165) -> 518 | H166: 69.43 | I166: =SUM(I159:I165) -> 492 | J166: 19.903 | K166: =SUM(K159:K165) -> 17.066 | L166: 64.182
A167: =A159 -> 2 | B167: =B159 -> 3 | C167: Обед | D167: закуска
D168: 1 блюдо
D169: 2 блюдо
D170: гарнир
D171: напиток
D172: хлеб бел.
D173: хлеб черн.
D176: итого | G176: =SUM(G167:G175) -> 0 | H176: =SUM(H167:H175) -> 0 | I176: 0 | J176: 0 | K176: 0 | L176: 0
A177: =A159 -> 2 | B177: =B159 -> 3 | C177: Итого за день: | G177: =G166+G176 -> 518 | H177: =H166+H176 -> 69.43 | I177: 492 | J177: 19.903 | K177: 17.066 | L177: 64.182
A178: 2 | B178: 4 | C178: Завтрак | D178: гор.блюдо | E178: ТТК 2015г | F178: Пельмени "Для умников и умниц" отварные с маслом | G178: 160 | I178: 359 | J178: 16.156 | K178: 15.790 | L178: 38.063
D179: гор.блюдо
D180: гор.напиток | E180: ТТК №2693 от 14.09.2023 | F180: Напиток из урюка | G180: 200 | I180: 79 | J180: 0.8 | K180: 0.064 | L180: 18.46
D181: хлеб | F181: Хлеб ржано-пшеничный/ Хлеб пшеничный | G181: 40 | I181: 91 | J181: 2.52 | K181: 0.36 | L181: 18.84
D182: фрукты | E182: №338 | F182: Плоды и ягоды свежие (яблоки) | G182: 100 | I182: 47 | J182: 0.400 | K182: 0.400 | L182: 9.800
D185: итого | G185: =G178+G179+G180+G181+G182+G183 -> 500 | H185: 69.43 | I185: =SUM(I178:I184) -> 576 | J185: =SUM(J178:J184) -> 19.876 | K185: =SUM(K178:K184) -> 16.614 | L185: 85.163
A186: =A178 -> 2 | B186: =B178 -> 4 | C186: Обед | D186: закуска
D187: 1 блюдо
D188: 2 блюдо
D189: гарнир
D190: напиток
D191: хлеб бел.
D192: хлеб черн.
D195: итого | G195: =SUM(G186:G194) -> 0 | H195: =SUM(H186:H194) -> 0 | I195: 0 | J195: 0 | K195: 0 | L195: 0
A196: =A178 -> 2 | B196: =B178 -> 4 | C196: Итого за день: | H196: =H185+H195 -> 69.43
A197: 2 | B197: 5 | C197: Завтрак | D197: гор.блюдо | E197: ТТК №2738 от 07.12.2023г2023г | F197: Жаркое по - домашнему | G197: 190 | I197: 382 | J197: 17.016 | K197: 17.200 | L197: 39.880
D198: гор.блюдо
D199: гор.напиток | E199: ТТК от 2021г | F199: Чай с сахаром | G199: 208 | I199: 32 | J199: 0.021 | K199: 0.005 | L199: 7.989
D200: хлеб | F200: Хлеб ржано-пшеничный/ Хлеб пшеничный | G200: 40 | I200: 91 | J200: 2.52 | K200: 0.36 | L200: 18.84
D202: фрукты | E202: №338 | F202: Плоды и ягоды свежие (яблоки) | G202: 100 | I202: 47 | J202: 0.400 | K202: 0.400 | L202: 9.800
D204: итого | G204: =SUM(G197:G203) -> 538 | H204: 69.43 | I204: =SUM(I197:I203) -> 552 | J204: 19.957 | K204: 17.965 | L204: 76.509
A205: =A197 -> 2 | B205: =B197 -> 5 | C205: Обед | D205: закуска
D206: 1 блюдо
D207: 2 блюдо
D208: гарнир
D209: напиток
D210: хлеб бел.
D211: хлеб черн.
D214: итого | G214: =SUM(G205:G213) -> 0 | H214: =SUM(H205:H213) -> 0 | I214: 0 | J214: 0 | K214: 0 | L214: 0
A215: =A197 -> 2 | B215: =B197 -> 5 | C215: Итого за день: | G215: =G204+G214 -> 538 | H215: =H204+H214 -> 69.43 | I215: 552 | J215: 19.957 | K215: 17.965 | L215: 76.509
A216: 2 | B216: 6 | C216: Завтрак | D216: гор.блюдо | E216: №243/2015 Дели | F216: Сосиски отварные | G216: 100 | I216: 199 | J216: 10.700 | K216: 14.500 | L216: 6.400
D217: гор.блюдо | E217: №309/2015г Дели | F217: Макаронные изделия отварные | G217: 150 | I217: 212 | J217: 5.602 | K217: 5.068 | L217: 35.906
D218: гор.напиток | E218: ТТК от 2021г | F218: Чай с сахаром | G218: 208 | I218: 32 | J218: 0.021 | K218: 0.005 | L218: 7.989
D219: хлеб | F219: Хлеб ржано-пшеничный/ Хлеб пшеничный | G219: 42 | I219: 95 | J219: 2.620 | K219: 0.380 | L219: 19.740
D220: фрукты
D223: итого | G223: =SUM(G216:G222) -> 500 | H223: 69.43 | I223: =SUM(I216:I222) -> 538 | J223: =SUM(J216:J222) -> 18.943 | K223: =SUM(K216:K222) -> 19.953 | L223: =SUM(L216:L222) -> 70.035
A224: =A216 -> 2 | B224: 6 | C224: Обед | D224: закуска
D225: 1 блюдо
D226: 2 блюдо
D227: гарнир
D228: напиток
D229: хлеб бел.
D230: хлеб черн.
D233: итого | G233: =SUM(G224:G232) -> 0 | H233: =SUM(H224:H232) -> 0 | I233: 0 | J233: 0 | K233: 0 | L233: 0
A234: =A216 -> 2 | B234: =B216 -> 6 | C234: Итого за день: | G234: =G223+G233 -> 500 | H234: =H223+H233 -> 69.43 | I234: 538 | J234: 18.943 | K234: 19.953 | L234: 70.035
